bitfinex-derivatives/quotes_ETHF0:USTF0_20250331
["timestamp","ask_amount","ask_price","bid_price","bid_amount"]
[1743441458144,0.00813758,1842.2,1842.1,2.4891]
[1743441458349,1.09387758,1842.2,1842.1,1.4033]
[1743441459150,1.0858,1842.1,1842.0,1.08582]
[1743441459351,1.0858,1842.1,1842.0,2.56532]
[1743441459752,1.0858,1842.1,1842.0,1.4795]
[1743441460156,1.0858,1842.1,1842.0,2.56536]
[1743441460755,1.0858,1842.1,1842.0,2.56531]
[1743441460952,0.00813758,1842.2,1842.0,1.4795]
[1743441461154,1.05266053,1842.1,1842.0,2.56532]
[1743441461353,1.05266053,1842.1,1842.0,2.53218053]
[1743441462056,0.00813758,1842.2,1842.1,1.0858]
[1743441462262,1.08574,1842.2,1842.1,1.7862]
[1743441462757,4.97749811,1842.4,1842.1,0.7004]
[1743441462958,1.08574,1842.2,1842.1,1.78614]
[1743441464152,2.57217758,1842.3,1842.2,1.08574]
[1743441464366,1.08574,1842.2,1842.1,1.78614]
[1743441464554,2.56404,1842.2,1842.1,2.1745]
[1743441464859,2.56404,1842.2,1841.9,0.73313758]
[1743441464860,1.08586,1842.0,1841.9,1.81900758]
[1743441465062,1.08586,1842.0,1841.9,1.46843758]
[1743441465252,1.08586,1842.0,1841.9,0.00813758]
[1743441465454,3.27216,1842.0,1841.9,0.00813758]
[1743441466254,3.27216,1842.0,1841.9,1.09405758]
[1743441466863,3.27216,1842.0,1841.9,2.55435758]
[1743441467063,2.1863,1842.0,1841.9,2.55435758]
[1743441467264,3.27216,1842.0,1841.9,2.55435758]
[1743441468159,3.27216,1842.0,1841.9,3.28165758]
[1743441468653,2.52356,1842.0,1841.9,3.28165758]
[1743441470759,1.4377,1842.0,1841.9,3.28165758]
[1743441470958,2.52356,1842.0,1841.9,3.28165758]
[1743441472357,2.52356,1842.0,1841.9,2.55435758]
[1743441472763,2.52356,1842.0,1841.9,0.00813758]
[1743441474863,2.52356,1842.0,1841.9,1.09405758]
[1743441475063,2.52356,1842.0,1841.9,0.00813758]
[1743441476164,2.52356,1842.0,1841.9,1.09405758]
[1743441476366,2.52356,1842.0,1841.9,2.48645758]
[1743441476958,2.52356,1842.0,1841.9,1.40053758]
[1743441478069,1.08604,1841.7,1841.6,0.6929]
[1743441478562,1.08604,1841.7,1841.5,2.2051]
[1743441478765,1.08604,1841.7,1841.6,2.56449]
[1743441478965,1.82131,1841.8,1841.7,1.08604]
[1743441479165,7.89476,1841.9,1841.8,1.08598]
[1743441479364,7.89476,1841.9,1841.8,1.81268]
[1743441480069,4.68696,1841.9,1841.8,0.7267]
[1743441480274,4.68696,1841.9,1841.8,1.81268]
[1743441480568,1.08592,1841.9,1841.8,1.81264]
[1743441483065,1.08592,1841.9,1841.8,1.81268]
[1743441483962,1.08592,1841.9,1841.8,0.7267]
[1743441484170,1.08592,1841.9,1841.8,1.81268]
[1743441484978,4.68691,1842.0,1841.9,1.08592]
[1743441485269,4.68691,1842.0,1841.9,2.1575]
[1743441485575,1.08592,1841.9,1841.8,1.81268]
[1743441486167,1.08592,1841.9,1841.8,3.24718]
[1743441486472,1.08592,1841.9,1841.8,3.96703127]
[1743441487173,1.08592,1841.9,1841.8,3.24718]
[1743441487576,1.08592,1841.9,1841.8,3.96708102]
[1743441488278,1.08592,1841.9,1841.8,2.88110102]
[1743441488476,1.08592,1841.9,1841.8,2.1612]
[1743441488879,1.08592,1841.9,1841.8,3.96711484]
[1743441489675,3.2078,1842.1,1841.8,5.59594484]
[1743441489880,3.601,1842.1,1842.0,1.08586]
[1743441490078,2.53375,1842.2,1842.1,1.0858]
[1743441490275,1.0858,1842.1,1842.0,2.57091]
[1743441490475,1.0858,1842.1,1842.0,3.25766333]
[1743441490676,1.0858,1842.1,1842.0,3.25767672]
[1743441490877,1.0858,1842.1,1842.0,1.45196053]
[1743441491078,1.08592,1841.9,1841.8,0.7267]
[1743441491281,1.08592,1841.9,1841.8,2.53259559]
[1743441492182,1.08592,1841.9,1841.8,1.44664559]
[1743441492371,1.08598,1841.8,1841.7,1.80812]
[1743441492586,1.08598,1841.8,1841.7,2.52825053]
[1743441493586,1.08598,1841.8,1841.7,4.02177053]
[1743441494075,2.46718,1841.8,1841.7,4.02177053]
[1743441494383,2.46718,1841.8,1841.7,4.02211701]
[1743441495085,2.46718,1841.8,1841.7,4.02211485]
[1743441495881,1.3812,1841.8,1841.7,4.02211485]
[1743441496086,2.53023,1842.1,1842.0,1.0858]
[1743441496276,2.53023,1842.1,1842.0,1.80627485]
[1743441496486,2.53023,1842.1,1842.0,1.80618952]
[1743441497687,2.53023,1842.1,1842.0,0.72038952]
[1743441497988,1.08586,1842.0,1841.9,2.54059]
[1743441498182,1.4444,1842.0,1841.9,3.26097058]
[1743441498787,2.53026,1842.0,1841.9,0.72038058]
[1743441498996,1.08592,1841.9,1841.8,1.4716]
[1743441499176,1.08604,1841.7,1841.6,0.00813758]
[1743441499783,2.1617,1841.8,1841.6,1.09418758]
[1743441499993,1.08604,1841.7,1841.6,2.56578758]
[1743441500193,1.4494,1841.8,1841.7,1.08604]
[1743441500489,2.53538,1841.8,1841.7,2.19199959]
[1743441500691,2.53538,1841.8,1841.7,1.4716]
[1743441500993,1.08604,1841.7,1841.6,1.09422758]
[1743441501193,2.53544,1841.7,1841.6,3.28628453]
[1743441504192,2.53544,1841.7,1841.6,2.20019453]
[1743441504589,5.74324,1841.7,1841.6,0.00813758]
[1743441507089,5.74324,1841.7,1841.6,1.41893758]
[1743441509495,2.53544,1841.7,1841.6,1.41893758]
[1743441516705,2.53544,1841.7,1841.6,0.00813758]
[1743441516706,5.74324,1841.7,1841.6,0.00813758]
[1743441518208,9.34324,1841.7,1841.6,0.00813758]
[1743441520105,9.34324,1841.7,1841.6,7.58e-06]
[1743441520413,11.84324,1841.7,1841.6,7.58e-06]
[1743441520804,9.34324,1841.7,1841.6,7.58e-06]
[1743441521211,9.78340046,1841.7,1841.6,7.58e-06]
[1743441521405,9.34324,1841.7,1841.6,7.58e-06]
[1743441522303,5.74324,1841.7,1841.6,7.58e-06]
[1743441522615,9.34224,1841.7,1841.6,7.58e-06]
[1743441523012,5.74324,1841.7,1841.6,7.58e-06]
[1743441523212,9.34224,1841.7,1841.6,7.58e-06]
[1743441523613,9.34224,1841.7,1841.6,1.36680758]
[1743441526408,1.08601,1841.8,1841.7,1.086]
[1743441526710,1.08601,1841.8,1841.7,1.76541]
[1743441527915,1.08601,1841.8,1841.7,2.48513421]
[1743441528519,1.08601,1841.8,1841.7,2.4853539]
[1743441528721,1.08601,1841.8,1841.7,1.3993439]
[1743441528920,1.08601,1841.8,1841.7,2.4853839]
[1743441529320,1.08601,1841.8,1841.7,0.6794]
[1743441529623,1.08601,1841.8,1841.7,1.76544]
[1743441529825,1.08601,1841.8,1841.7,2.1523]
[1743441530925,1.08601,1841.8,1841.7,1.4729]
[1743441531225,1.76541,1841.8,1841.7,1.4729]
[1743441531826,1.08604,1841.7,1841.6,2.19690758]
[1743441532010,2.46124,1841.7,1841.6,2.19690758]
[1743441532212,2.46124,1841.7,1841.6,7.58e-06]
[1743441532425,6.78124,1841.7,1841.6,7.58e-06]
[1743441532614,6.06024,1841.7,1841.6,0.71000758]
[1743441532815,6.06024,1841.7,1841.6,2.07120758]
[1743441533821,6.06024,1841.7,1841.6,1.36120758]
[1743441534131,6.06024,1841.7,1841.6,7.58e-06]
[1743441536325,6.06024,1841.7,1841.6,1.43340758]
[1743441540321,2.46124,1841.7,1841.6,1.43340758]
[1743441540825,2.46124,1841.7,1841.6,7.58e-06]
[1743441541926,2.46124,1841.7,1841.6,1.43270758]
[1743441542622,2.46124,1841.7,1841.6,7.58e-06]
[1743441543226,4.96124,1841.7,1841.6,7.58e-06]
[1743441546132,1.08627,1841.3,1841.2,0.6966]
[1743441546337,7.89207,1841.3,1841.2,0.6966]
[1743441547035,9.28197,1841.3,1841.2,0.6966]
[1743441547327,1.08633,1841.2,1841.1,1.4494]
[1743441547636,2.50013,1841.2,1841.1,1.4494]
[1743441548029,1.08633,1841.2,1841.1,1.4494]
[1743441548425,2.50013,1841.2,1841.1,1.4494]
[1743441549335,1.08633,1841.2,1841.1,1.4494]
[1743441549838,2.50013,1841.2,1841.1,1.4494]
[1743441552543,3.96213,1841.2,1841.1,1.4494]
[1743441553135,1.08639,1841.1,1841.0,0.7151]
[1743441553332,5.66969,1841.1,1841.0,0.7151]
[1743441553635,5.66969,1841.1,1841.0,2.1489]
[1743441554229,1.08645,1841.0,1840.9,0.6785]
[1743441554433,2.46195,1841.0,1840.9,0.6785]
[1743441554628,6.05995,1841.0,1840.9,0.6785]
[1743441554833,6.05995,1841.0,1840.9,2.1123]
[1743441558041,2.46195,1841.0,1840.9,2.1123]
[1743441558743,1.08645,1841.0,1840.9,2.1123]
[1743441559243,1.08645,1841.0,1840.9,3.19881]
[1743441559448,1.08645,1841.0,1840.9,2.1123]
[1743441562241,1.08643,1841.1,1840.9,2.1123]
[1743441562545,1.08643,1841.1,1841.0,2.49514]
[1743441563235,1.08643,1841.1,1841.0,1.4087]
[1743441564038,4.29423,1841.1,1841.0,1.4087]
[1743441564244,1.08643,1841.1,1841.0,1.4087]
[1743441566349,4.29423,1841.1,1841.0,1.4087]
[1743441567746,1.08645,1841.0,1840.9,0.6785]
[1743441567946,2.51285,1841.0,1840.9,0.6785]
[1743441569145,2.51285,1841.0,1840.9,2.1117]
[1743441571546,2.51285,1841.0,1840.9,1.4332]
[1743441571547,6.11085,1841.0,1840.9,1.4332]
[1743441571743,6.11085,1841.0,1840.6,0.6874]
[1743441571744,1.08663,1840.7,1840.6,0.6874]
[1743441571941,4.29443,1840.7,1840.6,0.6874]
[1743441572138,4.29443,1840.7,1840.0,5.86375447]
[1743441572139,3.2078,1840.5,1838.9,12.9138]
[1743441572341,4.29507,1839.6,1839.5,1.3585]
[1743441572944,5.67457,1839.6,1839.5,1.3585]
[1743441574348,4.29507,1839.6,1839.5,1.3585]
[1743441574945,5.73497,1839.6,1839.5,1.3585]
[1743441576354,1.08739,1839.4,1839.3,0.6874]
[1743441577244,5.735,1839.6,1839.3,1.77481]
[1743441577444,5.735,1839.6,1839.5,1.08733]
[1743441577445,4.6477,1839.6,1839.5,1.08733]
[1743441577644,4.6477,1839.6,1839.4,2.45096]
[1743441577645,5.73499,1839.6,1839.4,2.45096]
[1743441578052,5.73499,1839.6,1839.4,1.3636]
[1743441578247,5.73499,1839.6,1839.4,2.45097]
[1743441578453,5.73499,1839.6,1839.5,1.08733]
[1743441578756,5.73497,1839.6,1839.5,1.4855]
[1743441579062,5.73497,1839.6,1839.5,2.57283]
[1743441579855,5.73497,1839.6,1839.5,1.4855]
[1743441580952,5.73497,1839.6,1839.5,2.57283]
[1743441581650,5.73497,1839.6,1839.5,1.4855]
[1743441581852,5.73497,1839.6,1839.5,2.57283]
[1743441582953,4.29507,1839.6,1839.5,1.4855]
[1743441583256,1.08739,1839.4,1839.3,1.77485]
[1743441583444,1.08739,1839.4,1839.3,2.1221]
[1743441585355,1.4527,1839.5,1839.4,1.08739]
[1743441585555,2.54005,1839.5,1839.4,2.53689]
[1743441585752,2.54003,1839.5,1839.4,2.53689]
[1743441586259,2.54003,1839.5,1839.4,1.4495]
[1743441587261,1.0873,1839.6,1839.5,1.0873]
[1743441587957,2.57447,1839.7,1839.6,1.08727]
[1743441588861,2.57447,1839.7,1839.6,2.54057]
[1743441589763,2.57447,1839.7,1839.6,1.4533]
[1743441590062,2.57447,1839.7,1839.6,2.54057]
[1743441594259,2.57447,1839.7,1839.6,1.4533]
[1743441594454,1.08727,1839.6,1839.5,1.83721]
[1743441594660,5.73407,1839.6,1839.5,3.28861]
[1743441595260,5.73407,1839.6,1839.5,1.83721]
[1743441595465,1.08739,1839.4,1839.3,3.2262]
[1743441595966,1.08739,1839.4,1839.3,2.1388]
[1743441596163,1.08739,1839.4,1839.3,3.22625]
[1743441596358,1.08739,1839.4,1839.3,2.1388]
[1743441596565,1.08739,1839.4,1839.3,3.22625]
[1743441598465,1.08739,1839.4,1839.3,2.1388]
[1743441598766,1.08739,1839.4,1839.3,3.22625]
[1743441599065,1.08739,1839.4,1839.3,2.1388]
[1743441599467,1.08739,1839.4,1839.3,3.22625]
[1743441600064,1.08739,1839.4,1839.3,1.77485]
[1743441600369,1.08739,1839.4,1839.3,2.1424]
[1743441600869,1.08745,1839.3,1839.2,0.6987]
[1743441601061,2.46985,1839.3,1839.2,0.6987]
[1743441601262,1.3824,1839.3,1839.0,1.0876]
[1743441601465,1.08757,1839.1,1839.0,2.5426]
[1743441602462,4.29537,1839.1,1839.0,1.455]
[1743441602665,2.54157,1839.1,1839.0,2.54263]
[1743441602871,4.2953,1839.3,1839.2,1.08751]
[1743441603066,4.6618,1839.3,1839.2,1.08751]
[1743441603271,4.6618,1839.3,1839.1,2.51922]
[1743441603472,2.54151,1839.2,1839.1,2.51922]
[1743441603671,1.08763,1839.1,1839.0,1.08761]
[1743441603978,2.54163,1839.1,1839.0,2.51933]
[1743441604175,5.74943,1839.1,1839.0,1.4317]
[1743441604472,2.54163,1839.1,1839.0,2.51933]
[1743441604667,2.54157,1839.1,1839.0,2.51933]
[1743441606279,5.74937,1839.1,1839.0,2.51933]
[1743441606674,5.74937,1839.1,1839.0,1.4317]
[1743441606877,1.08763,1839.0,1838.9,1.4886]
[1743441607075,1.08782,1838.8,1838.7,1.08776]
[1743441607276,1.08782,1838.8,1838.7,2.56006]
[1743441607585,4.29562,1838.8,1838.7,1.4723]
[1743441607875,4.29562,1838.8,1838.7,2.56011]
[1743441608076,1.08781,1838.7,1838.6,1.4316]
[1743441608276,2.45911,1838.7,1838.6,1.4316]
[1743441608882,2.45911,1838.7,1838.6,2.817]
[1743441609885,1.08798,1838.5,1838.4,1.08794]
[1743441610081,1.08798,1838.5,1838.4,3.18674]
[1743441610284,2.71997,1838.4,1837.8,2.72083]
[1743441610584,2.72038,1838.2,1837.9,1.08827]
[1743441610778,3.2078,1838.3,1837.9,1.08827]
[1743441610779,1.08822,1838.0,1837.9,1.3854]
[1743441610982,1.08822,1838.0,1837.9,2.47368]
[1743441611182,1.3713,1838.1,1837.9,1.3854]
[1743441611382,2.45948,1838.1,1838.0,1.08822]
[1743441611686,2.45951,1838.1,1838.0,1.08822]
[1743441611885,1.08822,1838.0,1837.9,2.47364]
[1743441612386,4.5791,1838.1,1838.0,1.08822]
[1743441612387,5.66731,1838.1,1838.0,1.08822]
[1743441612584,5.66731,1838.1,1838.0,3.24522]
[1743441612785,2.45951,1838.1,1838.0,3.24522]
[1743441612982,2.45951,1838.1,1838.0,2.157]
[1743441613186,1.08816,1838.1,1838.0,3.24518]
[1743441613486,1.4659,1838.2,1838.1,1.08816]
[1743441613686,1.4659,1838.2,1838.1,2.53416]
[1743441613984,2.554,1838.2,1838.1,2.53416]
[1743441614590,1.08816,1838.1,1838.0,1.79918]
[1743441614889,1.08822,1838.0,1837.9,2.47838]
[1743441615093,1.08828,1837.9,1837.8,1.76819]
[1743441615282,2.49518,1837.9,1837.8,3.15829]
[1743441615488,3.9457,1838.1,1837.9,1.08828]
[1743441615489,1.08826,1838.0,1837.9,1.08828]
[1743441615689,2.49516,1838.0,1837.9,2.47838]
[1743441615884,2.49516,1838.0,1837.9,1.3901]
[1743441616088,2.49516,1838.0,1837.9,1.08828]
[1743441616089,1.4069,1838.0,1837.9,1.08828]
[1743441616283,1.4069,1838.0,1837.9,2.47838]
[1743441616501,1.4069,1838.0,1837.8,0.6799]
[1743441616684,4.29608,1837.9,1837.8,0.6799]
[1743441616889,4.29608,1837.9,1837.8,2.07]
[1743441617084,1.08834,1837.8,1837.7,0.6789]
[1743441617385,2.47184,1837.8,1837.7,0.6789]
[1743441617790,2.47184,1837.8,1837.7,3.1664]
[1743441618088,1.3835,1837.8,1837.7,3.1664]
[1743441618294,0.00815992,1837.9,1837.8,1.08834]
[1743441618595,1.09643992,1837.9,1837.8,2.48744]
[1743441619688,1.09643992,1837.9,1837.8,1.3991]
[1743441619689,4.30423992,1837.9,1837.8,1.3991]
[1743441620091,4.30423992,1837.9,1837.8,2.48744]
[1743441620290,5.76833992,1837.9,1837.8,1.3991]
[1743441620584,5.76833992,1837.9,1837.8,2.48744]
[1743441621296,1.47225992,1837.9,1837.8,2.48744]
[1743441621889,0.00815992,1837.9,1837.8,2.48744]
[1743441622395,3.2078,1838.3,1838.2,1.0881]
[1743441622590,4.29584,1838.3,1838.2,1.0881]
[1743441622991,1.0881,1838.2,1838.1,3.15535]
[1743441623193,1.0881,1838.2,1838.1,1.79225]
[1743441623397,2.451,1838.2,1838.1,1.79226]
[1743441624901,0.00815992,1838.3,1838.2,1.0881]
[1743441625397,1.09619992,1838.3,1838.2,1.0881]
[1743441625590,0.00815992,1838.3,1838.2,1.0881]
[1743441626197,1.0881,1838.2,1838.1,0.7041]
[1743441626396,2.474,1838.2,1838.1,0.7041]
[1743441626603,1.08816,1838.1,1838.0,0.00815992]
[1743441626897,5.68186,1838.1,1838.0,0.00815992]
[1743441627105,5.68186,1838.1,1838.0,1.09637992]
[1743441627401,2.47406,1838.1,1838.0,0.00815992]
[1743441627600,2.47406,1838.1,1838.0,1.09637992]
[1743441628289,1.08815,1838.2,1838.0,0.00815992]
[1743441628494,1.08815,1838.2,1838.1,1.08816]
[1743441628495,2.47405,1838.2,1838.1,1.08816]
[1743441628696,2.47405,1838.2,1838.1,1.78766]
[1743441629199,0.00815992,1838.3,1838.2,1.0881]
[1743441631696,1.09619992,1838.3,1838.2,1.0881]
[1743441632003,1.0881,1838.2,1838.1,1.78766]
[1743441632200,2.5384,1838.2,1838.1,0.6995]
[1743441632402,1.08816,1838.1,1838.0,1.09635992]
[1743441632597,2.53846,1838.1,1838.0,1.09635992]
[1743441632799,1.4503,1838.1,1838.0,1.09635992]
[1743441632999,4.30404992,1838.3,1838.2,1.0881]
[1743441633502,1.08816,1838.2,1838.1,1.08811]
[1743441634099,1.08816,1838.1,1838.0,1.79221992]
[1743441634401,2.53844,1838.2,1838.1,1.08816]
[1743441634711,1.4503,1838.2,1838.1,1.08816]
[1743441634909,2.5384,1838.2,1838.1,1.08816]
[1743441635204,1.08816,1838.1,1838.0,1.79223992]
[1743441635407,2.53845,1838.2,1838.1,1.08816]
[1743441635797,5.70043992,1838.3,1838.2,1.0881]
[1743441636000,1.08816,1838.2,1838.1,1.08814]
[1743441636205,1.08816,1838.1,1838.0,1.79225992]
[1743441636401,2.48455,1838.2,1838.1,1.08816]
[1743441636605,1.3964,1838.2,1838.1,1.08816]
[1743441636805,2.4845,1838.2,1838.1,1.08816]
[1743441637005,0.00815992,1838.3,1838.2,1.0881]
[1743441637200,2.49259992,1838.3,1838.2,1.0881]
[1743441637407,4.12467992,1838.3,1838.0,0.70405992]
[1743441637701,1.08816,1838.1,1838.0,1.79222992]
[1743441637909,2.48455,1838.2,1838.1,1.08816]
[1743441638402,2.4845,1838.2,1838.1,1.08816]
[1743441638603,1.3964,1838.2,1838.1,1.08816]
[1743441638812,0.00815992,1838.3,1838.2,1.0881]
[1743441639010,1.08783,1838.7,1838.5,1.08793]
[1743441639310,1.08783,1838.7,1838.6,1.83931]
[1743441639608,1.08783,1838.7,1838.6,2.57341]
[1743441639809,2.44793,1838.7,1838.6,2.57341]
[1743441640206,5.65573,1838.7,1838.6,1.4856]
[1743441640510,1.08787,1838.6,1838.5,1.08788]
[1743441640704,2.44797,1838.6,1838.5,1.08788]
[1743441641704,1.08783,1838.7,1838.6,1.08787]
[1743441642103,2.06495992,1838.8,1838.4,5.4397]
[1743441642104,1.0879,1838.6,1838.5,1.08784]
[1743441642510,2.45155,1838.7,1838.6,1.08787]
[1743441643211,1.08787,1838.6,1838.5,2.56348]
[1743441643405,1.3637,1838.6,1838.5,2.56348]
[1743441644411,2.45157,1838.6,1838.5,2.56348]
[1743441644708,1.3637,1838.6,1838.5,2.56348]
[1743441645016,1.09592992,1838.8,1838.7,1.08781]
[1743441645213,2.50612992,1838.8,1838.7,1.08781]
[1743441645414,1.41835992,1838.8,1838.7,1.08781]
[1743441645605,1.41835992,1838.8,1838.7,2.56761]
[1743441645808,0.00815992,1838.8,1838.7,2.56761]
[1743441646215,1.09590992,1838.8,1838.7,2.56761]
[1743441646515,1.41835992,1838.8,1838.7,2.56761]
[1743441648123,1.41835992,1838.8,1838.7,4.01011]
[1743441648911,2.50610992,1838.8,1838.7,4.01011]
[1743441650422,1.08793,1838.6,1838.5,1.08788]
[1743441650910,1.08793,1838.6,1838.5,2.51498]
[1743441651116,2.45323,1838.6,1838.5,2.51498]
[1743441651311,1.08798,1838.4,1838.2,0.7063]
[1743441651517,1.08798,1838.4,1838.3,1.08804]
[1743441651815,1.08788,1838.7,1838.6,1.08783]
[1743441652016,1.09595992,1838.8,1838.7,1.08781]
[1743441652317,1.08787,1838.6,1838.5,2.51498]
[1743441653620,1.08787,1838.7,1838.6,1.08782]
[1743441654117,4.29567,1838.7,1838.6,1.08782]
[1743441654512,1.08787,1838.6,1838.5,2.515]
[1743441655810,1.08797,1838.5,1838.4,1.08792]
[1743441656019,1.78427,1838.5,1838.4,1.08792]
[1743441656416,1.78427,1838.5,1838.4,2.55742]
[1743441656916,0.6963,1838.5,1838.4,2.55742]
[1743441657116,1.78423,1838.5,1838.4,2.55742]
[1743441657822,0.6963,1838.5,1838.4,2.55742]
[1743441658021,1.08792,1838.6,1838.5,1.08793]
[1743441658222,1.08792,1838.6,1838.5,2.55743]
[1743441658516,1.08793,1838.5,1838.4,1.08795]
[1743441658919,1.08798,1838.4,1838.3,1.08802]
[1743441659116,1.08804,1838.3,1838.2,1.08807]
[1743441659322,1.0881,1838.2,1838.1,3.29382]
[1743441659516,1.0881,1838.2,1838.1,3.29386]
[1743441660524,3.2078,1838.5,1838.1,2.2057]
[1743441660822,6.3207,1838.6,1838.5,1.08793]
[1743441660823,4.9773,1838.6,1838.5,1.08793]
[1743441661019,4.9773,1838.6,1838.3,2.72001]
[1743441661020,1.08798,1838.5,1838.4,1.08793]
[1743441661215,1.08798,1838.5,1838.4,2.53593]
[1743441661425,1.08789,1838.7,1838.6,1.08783]
[1743441661925,5.93533992,1838.8,1838.7,1.08781]
[1743441661926,1.09596992,1838.8,1838.7,1.08781]
[1743441662326,1.08781,1838.7,1838.6,2.53582]
[1743441663122,2.51861,1838.7,1838.6,2.53582]
[1743441663324,1.4308,1838.7,1838.6,2.53582]
[1743441663924,2.51861,1838.7,1838.6,2.53582]
[1743441664224,1.4308,1838.7,1838.6,2.53582]
[1743441664421,0.00815992,1838.8,1838.7,1.08781]
[1743441665233,2.52670992,1838.8,1838.7,1.08781]
[1743441666019,1.43895992,1838.8,1838.7,1.08781]
[1743441666221,2.52670992,1838.8,1838.7,1.08781]
[1743441666422,2.52670992,1838.8,1838.6,2.53582]
[1743441666423,1.08781,1838.7,1838.6,2.53582]
[1743441666622,2.50081,1838.7,1838.6,2.53582]
[1743441666824,1.413,1838.7,1838.6,2.53582]
[1743441667425,0.00815992,1838.8,1838.7,1.08781]
[1743441667626,1.09590992,1838.8,1838.7,1.08781]
[1743441667921,0.00815992,1838.8,1838.7,1.08781]
[1743441668128,1.09590992,1838.8,1838.7,1.08781]
[1743441668726,0.00815992,1838.8,1838.7,1.08781]
[1743441674320,1.48455992,1838.8,1838.7,1.08781]
[1743441675327,0.00815992,1838.8,1838.7,1.08781]
[1743441675531,9.92e-06,1838.8,1838.7,14.00161]
[1743441676533,9.92e-06,1838.8,1838.7,15.40881]
[1743441677032,9.92e-06,1838.8,1838.7,12.20101]
[1743441677227,9.92e-06,1838.8,1838.7,15.40881]
[1743441677822,9.92e-06,1838.8,1838.7,19.00881]
[1743441678222,9.92e-06,1838.8,1838.7,15.80101]
[1743441678531,9.92e-06,1838.8,1838.7,2.49501]
[1743441678727,9.92e-06,1838.8,1838.7,6.09501]
[1743441679537,1.08775992,1838.8,1838.7,2.49501]
[1743441679832,1.08781,1838.7,1838.6,4.68782]
[1743441680138,3.22641,1838.7,1838.6,1.08782]
[1743441680333,3.22641,1838.7,1838.6,2.44802]
[1743441681636,9.92e-06,1838.8,1838.6,1.3602]
[1743441681833,9.92e-06,1838.8,1838.7,1.08781]
[1743441682132,2.46715992,1838.8,1838.7,1.08781]
[1743441682438,1.37940992,1838.8,1838.7,2.58801]
[1743441683333,9.92e-06,1838.8,1838.7,2.58801]
[1743441683938,1.08775992,1838.8,1838.7,2.58801]
[1743441684136,2.50405992,1838.8,1838.7,1.08781]
[1743441686961,1.08781,1838.7,1838.6,1.3893]
[1743441687234,4.09305,1838.7,1838.2,2.72024]
[1743441687464,1.08797,1838.5,1838.4,1.08793]
[1743441687857,2.46147,1838.5,1838.4,1.08793]
[1743441688366,1.08798,1838.4,1838.3,2.57679]
[1743441688569,2.72012,1838.3,1838.0,0.00815992]
[1743441688873,1.08816,1838.1,1838.0,0.00815992]
[1743441689256,2.46166,1838.1,1838.0,0.00815992]
[1743441690163,1.0884,1837.7,1837.6,1.08843]
[1743441690756,1.4633,1837.7,1837.6,1.08843]
[1743441690951,1.4633,1837.7,1837.6,2.56323]
[1743441691756,0.00815992,1837.8,1837.7,1.0884]
[1743441691936,0.00815992,1837.8,1837.7,2.5632]
[1743441692243,1.47145992,1837.8,1837.7,2.5632]
[1743441693037,0.00815992,1837.8,1837.7,2.5632]
[1743441693339,0.00815992,1837.8,1837.7,6.1632]
[1743441693548,0.00815992,1837.8,1837.7,2.5632]
[1743441693747,0.00815992,1837.8,1837.7,6.1632]
[1743441694742,0.00815992,1837.8,1837.7,2.5632]
[1743441696545,1.37855992,1837.8,1837.7,2.5632]
[1743441697334,2.46689992,1837.8,1837.7,2.5632]
[1743441697539,1.37855992,1837.8,1837.7,2.5632]
[1743441698444,0.00815992,1837.8,1837.7,2.5632]
[1743441700044,3.2078,1838.2,1838.1,1.08816]
[1743441700247,1.4179,1838.3,1838.2,1.0881]
[1743441701036,2.50598,1838.3,1838.2,1.0881]
[1743441702655,1.4179,1838.3,1838.2,1.0881]
[1743441703344,2.50594,1838.3,1838.2,1.0881]
[1743441704143,1.4179,1838.3,1838.2,1.0881]
[1743441704540,1.4179,1838.3,1838.2,1.807]
[1743441705147,0.00815992,1838.4,1838.3,1.08804]
[1743441705350,0.00815992,1838.4,1838.3,2.46854]
[1743441706557,0.00815992,1838.4,1838.3,5.67634]
[1743441709856,1.09613992,1838.4,1838.3,6.06954]
[1743441710048,1.09613992,1838.4,1838.3,4.68904]
[1743441710246,1.41775992,1838.4,1838.3,4.68904]
[1743441710651,1.41775992,1838.4,1838.3,6.06044]
[1743441714149,0.00815992,1838.4,1838.3,6.06044]
[1743441714752,3.2078,1839.1,1839.0,1.08763]
[1743441715054,1.08771,1839.0,1838.9,1.08766]
[1743441715649,1.08774,1838.9,1838.8,1.0877]
[1743441715952,4.29554,1838.9,1838.8,1.0877]
[1743441716261,1.08775,1838.8,1838.7,1.09592992]
[1743441716452,3.18305,1838.8,1838.7,1.09592992]
[1743441717146,1.3748,1838.8,1838.7,1.09592992]
[1743441717351,0.00815992,1839.0,1838.9,1.08769]
[1743441717546,1e-08,1839.0,1838.9,4.68869]
[1743441717955,1e-08,1839.0,1838.9,6.17519]
[1743441720158,1e-08,1839.0,1838.9,2.57419]
[1743441720353,1e-08,1839.0,1838.9,6.17719]
[1743441720763,1e-08,1839.0,1838.9,2.57419]
[1743441720963,1e-08,1839.0,1838.9,6.18119]
[1743441721862,1.43930001,1839.0,1838.9,6.18119]
[1743441722065,2.52693001,1839.0,1838.9,1.08769]
[1743441722257,1.08769,1838.9,1838.8,4.69572]
[1743441722464,1.4393,1838.9,1838.8,4.69575]
[1743441722859,1.08775,1838.8,1838.7,4.70292992]
[1743441723060,1.4393,1838.9,1838.8,1.08775]
[1743441723753,1.4393,1838.9,1838.8,2.59155]
[1743441727068,1e-08,1839.0,1838.9,1.08769]
[1743441727255,1.40560001,1839.0,1838.9,2.55919]
[1743441729169,1e-08,1839.0,1838.9,2.55919]
[1743441729370,1e-08,1839.0,1838.9,3.97229]
[1743441730864,1e-08,1839.0,1838.9,6.15919]
[1743441731067,0.71830001,1839.0,1838.9,6.15919]
[1743441731459,2.15160001,1839.0,1838.9,6.15919]
[1743441731665,1e-08,1839.0,1838.9,6.90109]